[Event "Early-Titled-Tuesday-Blitz-April-16-2024"]
[Site "Chess.com"]
[Date "2024.04.16"]
[Round "1"]
[White "Viktoker"]
[Black "GMG"]
[Result "0-1"]
[WhiteElo "2447"]
[BlackElo "2794"]
[TimeControl "180+1"]
[EndTime "8:07:34 PDT"]
[Termination "GMG won by resignation"]

1. d4 {[%clk 0:03:00.9]} 1... f5 {[%clk 0:02:59.6]} 2. Nc3 {[%clk 0:02:59.7]}
2... Nf6 {[%clk 0:02:59.5]} 3. Bg5 {[%clk 0:03:00.2]} 3... d5 {[%clk 0:02:59.8]}
4. Bxf6 {[%clk 0:03:00.8]} 4... exf6 {[%clk 0:02:59.9]} 5. e3 {[%clk 0:03:01.7]}
5... Be6 {[%clk 0:03:00.4]} 6. Qf3 {[%clk 0:03:01.7]} 6... Qd7 {[%clk
0:02:58.5]} 7. Bb5 {[%clk 0:03:01.6]} 7... Nc6 {[%clk 0:02:54.3]} 8. Nge2 {[%clk
0:03:00.7]} 8... a6 {[%clk 0:02:54.7]} 9. Ba4 {[%clk 0:02:59.2]} 9... b5 {[%clk
0:02:49.1]} 10. Bb3 {[%clk 0:02:58.8]} 10... Ne7 {[%clk 0:02:48.9]} 11. h3
{[%clk 0:02:55.7]} 11... c6 {[%clk 0:02:30.9]} 12. Nf4 {[%clk 0:02:54.4]} 12...
Bf7 {[%clk 0:02:30.9]} 13. Nd3 {[%clk 0:02:54.1]} 13... Ng6 {[%clk 0:02:12.3]}
14. g4 {[%clk 0:02:44.4]} 14... Nh4 {[%clk 0:01:54.5]} 15. Qg3 {[%clk
0:02:38.7]} 15... g5 {[%clk 0:01:51.8]} 16. O-O-O {[%clk 0:02:34.6]} 16... Bd6
{[%clk 0:01:46.7]} 17. f4 {[%clk 0:02:34.6]} 17... a5 {[%clk 0:01:33.3]} 18. a4
{[%clk 0:02:30.5]} 18... b4 {[%clk 0:01:31.8]} 19. Ne2 {[%clk 0:02:25.2]} 19...
Qe7 {[%clk 0:01:31.4]} 20. Kb1 {[%clk 0:02:12.4]} 20... O-O {[%clk 0:01:22.7]}
21. Rhe1 {[%clk 0:01:32.9]} 21... Rae8 {[%clk 0:01:05.8]} 22. Ng1 {[%clk
0:00:58.8]} 22... Bg6 {[%clk 0:01:06]} 23. Nf3 {[%clk 0:00:51.7]} 23... Nxf3
{[%clk 0:01:04.5]} 24. Qxf3 {[%clk 0:00:52.6]} 24... fxg4 {[%clk 0:01:03.6]} 25.
Qxg4 {[%clk 0:00:40.5]} 25... Qe6 {[%clk 0:00:59.5]} 26. Qg1 {[%clk 0:00:22]}
26... Qxh3 {[%clk 0:00:39]} 27. fxg5 {[%clk 0:00:21.9]} 27... fxg5 {[%clk
0:00:39.9]} 28. Qxg5 {[%clk 0:00:19.8]} 28... Qg3 {[%clk 0:00:40]} 29. Qxg3
{[%clk 0:00:18.2]} 29... Bxg3 {[%clk 0:00:39.6]} 30. Rh1 {[%clk 0:00:16.5]}
30... Rxe3 {[%clk 0:00:38.5]} 31. Nc5 {[%clk 0:00:13.3]} 31... Rf2 {[%clk
0:00:33.9]} 32. Rdg1 {[%clk 0:00:10]} 32... Bd6 {[%clk 0:00:26]} 33. Ka2 {[%clk
0:00:09.1]} 33... Bxc5 {[%clk 0:00:25.1]} 34. dxc5 {[%clk 0:00:10]} 34... Kg7
{[%clk 0:00:18.3]} 35. Rg5 {[%clk 0:00:09.9]} 35... Rf5 {[%clk 0:00:16.1]} 36.
Rg4 {[%clk 0:00:08.3]} 36... Re4 {[%clk 0:00:14.7]} 37. Rg2 {[%clk 0:00:07.1]}
37... Ref4 {[%clk 0:00:14.4]} 38. Rhg1 {[%clk 0:00:07]} 38... Rf2 {[%clk
0:00:13.9]} 39. Rg4 {[%clk 0:00:06.6]} 39... R5f4 {[%clk 0:00:13.8]} 40. Rg5
{[%clk 0:00:06.1]} 40... Kf6 {[%clk 0:00:13.7]} 41. c3 {[%clk 0:00:05.9]} 41...
bxc3 {[%clk 0:00:13.3]} 42. Ka3 {[%clk 0:00:05.3]} 42... cxb2 {[%clk 0:00:13.1]}
43. Rb1 {[%clk 0:00:02.2]} 43... Bxb1 {[%clk 0:00:11.9]} 0-1

[Event "Early-Titled-Tuesday-Blitz-April-16-2024"]
[Site "Chess.com"]
[Date "2024.04.16"]
[Round "1"]
[White "ViratKohl_i"]
[Black "jcibarra"]
[Result "0-1"]
[WhiteElo "2519"]
[BlackElo "2961"]
[TimeControl "180+1"]
[EndTime "8:07:35 PDT"]
[Termination "jcibarra won by resignation"]

1. e4 {[%clk 0:03:00.9]} 1... c5 {[%clk 0:02:58.1]} 2. Nf3 {[%clk 0:03:00.2]}
2... e6 {[%clk 0:02:58.6]} 3. g3 {[%clk 0:02:59.3]} 3... Nc6 {[%clk 0:02:58.5]}
4. Bg2 {[%clk 0:02:59.5]} 4... Nf6 {[%clk 0:02:59.2]} 5. Qe2 {[%clk 0:02:58.9]}
5... e5 {[%clk 0:02:59.7]} 6. O-O {[%clk 0:02:58.3]} 6... Be7 {[%clk 0:03:00.5]}
7. c3 {[%clk 0:02:57.8]} 7... O-O {[%clk 0:03:00.7]} 8. Rd1 {[%clk 0:02:56.2]}
8... d5 {[%clk 0:03:00.7]} 9. exd5 {[%clk 0:02:52.5]} 9... Qxd5 {[%clk
0:03:01.6]} 10. d3 {[%clk 0:02:49.3]} 10... Bg4 {[%clk 0:03:00.8]} 11. h3 {[%clk
0:02:48.4]} 11... Bh5 {[%clk 0:03:00.9]} 12. Bg5 {[%clk 0:02:46.7]} 12... e4
{[%clk 0:02:39]} 13. dxe4 {[%clk 0:01:58.9]} 13... Qxg5 {[%clk 0:02:36.2]} 14.
g4 {[%clk 0:01:59.5]} 14... Qh6 {[%clk 0:02:18.3]} 15. gxh5 {[%clk 0:01:58]}
15... Nxh5 {[%clk 0:02:18.2]} 16. Nh2 {[%clk 0:01:51.6]} 16... Nf4 {[%clk
0:02:15.8]} 17. Qf3 {[%clk 0:01:51.6]} 17... Ne5 {[%clk 0:02:14.7]} 18. Qe3
{[%clk 0:01:46.4]} 18... Qg5 {[%clk 0:02:10.2]} 19. Ng4 {[%clk 0:01:42.7]} 19...
Nxg4 {[%clk 0:02:07.5]} 20. hxg4 {[%clk 0:01:43.6]} 20... Qxg4 {[%clk
0:01:58.9]} 21. Qf3 {[%clk 0:01:43.3]} 21... Qg5 {[%clk 0:01:48.4]} 22. Na3
{[%clk 0:01:42.3]} 22... Rad8 {[%clk 0:01:30.9]} 23. Nc4 {[%clk 0:01:41]} 23...
Rfe8 {[%clk 0:01:24.1]} 24. Ne3 {[%clk 0:01:36.9]} 24... Bd6 {[%clk 0:01:19.9]}
25. Kf1 {[%clk 0:01:34.6]} 25... g6 {[%clk 0:01:07.8]} 26. a4 {[%clk 0:01:29.8]}
26... h5 {[%clk 0:01:02.7]} 27. a5 {[%clk 0:01:28.9]} 27... Bc7 {[%clk
0:01:01.1]} 28. a6 {[%clk 0:01:26.2]} 28... b5 {[%clk 0:01:01.3]} 29. Rxd8
{[%clk 0:01:23.8]} 29... Rxd8 {[%clk 0:01:01.2]} 30. Rd1 {[%clk 0:01:23.5]}
30... Rxd1+ {[%clk 0:00:58.4]} 31. Qxd1 {[%clk 0:01:22.9]} 31... Bb6 {[%clk
0:00:44.1]} 32. Bf3 {[%clk 0:01:15.4]} 32... c4 {[%clk 0:00:43.6]} 33. Qd7
{[%clk 0:01:00.8]} 33... Nd3 {[%clk 0:00:36.6]} 34. Nd5 {[%clk 0:00:50.8]} 34...
Qc1+ {[%clk 0:00:33.2]} 35. Kg2 {[%clk 0:00:47.5]} 35... Qg5+ {[%clk 0:00:28.9]}
36. Kf1 {[%clk 0:00:46.3]} 36... Bxf2 {[%clk 0:00:29.2]} 37. Ke2 {[%clk
0:00:34.2]} 37... Bc5 {[%clk 0:00:23.6]} 38. Qxb5 {[%clk 0:00:22.4]} 38... Qg1
{[%clk 0:00:19.8]} 39. Qxc4 {[%clk 0:00:20]} 39... Ne5 {[%clk 0:00:14.8]} 40.
Nf6+ {[%clk 0:00:15.6]} 40... Kg7 {[%clk 0:00:14.3]} 41. Ne8+ {[%clk 0:00:15.5]}
41... Kf8 {[%clk 0:00:14.9]} 42. Qb5 {[%clk 0:00:15.1]} 42... Qe3+ {[%clk
0:00:15]} 43. Kd1 {[%clk 0:00:15.4]} 43... Qxf3+ {[%clk 0:00:15.2]} 44. Kc2
{[%clk 0:00:16]} 44... Qxe4+ {[%clk 0:00:15.7]} 45. Kb3 {[%clk 0:00:15.9]} 45...
Qd5+ {[%clk 0:00:14.5]} 46. c4 {[%clk 0:00:15.3]} 46... Qxc4+ {[%clk 0:00:12]}
0-1

[Event "Early-Titled-Tuesday-Blitz-April-16-2024"]
[Site "Chess.com"]
[Date "2024.04.16"]
[Round "1"]
[White "DarkAlekhine"]
[Black "FlemingA"]
[Result "1-0"]
[WhiteElo "2774"]
[BlackElo "2439"]
[TimeControl "180+1"]
[EndTime "8:07:36 PDT"]
[Termination "DarkAlekhine won on time"]

1. e4 {[%clk 0:03:00.9]} 1... g6 {[%clk 0:02:53.3]} 2. d4 {[%clk 0:03:00.8]}
2... Bg7 {[%clk 0:02:50.4]} 3. Nf3 {[%clk 0:02:58.4]} 3... d6 {[%clk 0:02:48.8]}
4. Bd3 {[%clk 0:02:58.2]} 4... Nf6 {[%clk 0:02:46.5]} 5. O-O {[%clk 0:02:58.2]}
5... O-O {[%clk 0:02:46.8]} 6. Re1 {[%clk 0:02:57.3]} 6... Nc6 {[%clk 0:02:47]}
7. c3 {[%clk 0:02:56.4]} 7... e5 {[%clk 0:02:46.2]} 8. h3 {[%clk 0:02:56.4]}
8... Re8 {[%clk 0:02:44.8]} 9. Nbd2 {[%clk 0:02:48.4]} 9... a6 {[%clk
0:02:44.9]} 10. Nf1 {[%clk 0:02:47.2]} 10... h6 {[%clk 0:02:43]} 11. Ng3 {[%clk
0:02:46.5]} 11... Bd7 {[%clk 0:02:32.2]} 12. d5 {[%clk 0:02:45.8]} 12... Ne7
{[%clk 0:02:31.5]} 13. c4 {[%clk 0:02:45.4]} 13... c6 {[%clk 0:02:24.7]} 14. Be3
{[%clk 0:02:41.9]} 14... cxd5 {[%clk 0:02:24.1]} 15. cxd5 {[%clk 0:02:41]} 15...
Bb5 {[%clk 0:02:17.3]} 16. Bxb5 {[%clk 0:02:25.9]} 16... axb5 {[%clk 0:02:18.2]}
17. Qd3 {[%clk 0:02:20.1]} 17... Qa5 {[%clk 0:02:13]} 18. Nd2 {[%clk 0:02:17.5]}
18... Nd7 {[%clk 0:02:05.7]} 19. Nb3 {[%clk 0:02:07.4]} 19... Qa4 {[%clk
0:02:06.1]} 20. Ne2 {[%clk 0:02:05.4]} 20... b4 {[%clk 0:01:58.1]} 21. Qd2
{[%clk 0:01:58.6]} 21... Kh7 {[%clk 0:01:55.9]} 22. Nec1 {[%clk 0:01:56.5]}
22... b6 {[%clk 0:01:30.2]} 23. Nd3 {[%clk 0:01:50]} 23... Nc5 {[%clk
0:01:30.3]} 24. Nbxc5 {[%clk 0:01:29.7]} 24... bxc5 {[%clk 0:01:30.3]} 25. b3
{[%clk 0:01:30.1]} 25... Qb5 {[%clk 0:01:24.9]} 26. Nb2 {[%clk 0:01:30]} 26...
Nc8 {[%clk 0:01:24.3]} 27. Nc4 {[%clk 0:01:29.9]} 27... Rd8 {[%clk 0:01:21.1]}
28. Qd3 {[%clk 0:01:13.9]} 28... Qb7 {[%clk 0:01:00.7]} 29. h4 {[%clk
0:00:52.9]} 29... Nb6 {[%clk 0:00:51.3]} 30. h5 {[%clk 0:00:48.1]} 30... Nxc4
{[%clk 0:00:50.9]} 31. hxg6+ {[%clk 0:00:47.7]} 31... fxg6 {[%clk 0:00:51.2]}
32. Qxc4 {[%clk 0:00:48.2]} 32... Ra3 {[%clk 0:00:47.2]} 33. g3 {[%clk
0:00:41.6]} 33... Rda8 {[%clk 0:00:47]} 34. Qc2 {[%clk 0:00:41.7]} 34... Qa6
{[%clk 0:00:43.4]} 35. Kg2 {[%clk 0:00:36.6]} 35... Rxa2 {[%clk 0:00:38.9]} 36.
Rxa2 {[%clk 0:00:36.8]} 36... Qxa2 {[%clk 0:00:39.8]} 37. Qc1 {[%clk 0:00:32.3]}
37... h5 {[%clk 0:00:30.5]} 38. Qd1 {[%clk 0:00:31.5]} 38... Ra3 {[%clk
0:00:24.1]} 39. g4 {[%clk 0:00:29.5]} 39... Qxb3 {[%clk 0:00:24.2]} 40. Qf3
{[%clk 0:00:29.4]} 40... hxg4 {[%clk 0:00:05.9]} 41. Qxg4 {[%clk 0:00:29.1]}
41... Qd3 {[%clk 0:00:05]} 42. Rh1+ {[%clk 0:00:17.1]} 42... Kg8 {[%clk
0:00:05.2]} 43. Qxg6 {[%clk 0:00:17.7]} 43... Qe2 {[%clk 0:00:02.7]} 44. Qe8+
{[%clk 0:00:15.6]} 44... Bf8 {[%clk 0:00:02.1]} 45. Qe6+ {[%clk 0:00:15.8]}
45... Kg7 {[%clk 0:00:01.9]} 46. Bh6+ {[%clk 0:00:16.4]} 1-0

[Event "Early-Titled-Tuesday-Blitz-April-16-2024"]
[Site "Chess.com"]
[Date "2024.04.16"]
[Round "1"]
[White "Mops_2004"]
[Black "UK_23"]
[Result "1/2-1/2"]
[WhiteElo "2803"]
[BlackElo "2460"]
[TimeControl "180+1"]
[EndTime "8:07:39 PDT"]
[Termination "Game drawn by repetition"]

1. g3 {[%clk 0:03:00.9]} 1... e5 {[%clk 0:02:55.2]} 2. c4 {[%clk 0:02:59.9]}
2... c6 {[%clk 0:02:54.5]} 3. Nf3 {[%clk 0:02:59.1]} 3... e4 {[%clk 0:02:54]} 4.
Nd4 {[%clk 0:02:59.4]} 4... d5 {[%clk 0:02:54.6]} 5. cxd5 {[%clk 0:03:00]} 5...
cxd5 {[%clk 0:02:55.5]} 6. d3 {[%clk 0:02:58.7]} 6... exd3 {[%clk 0:02:53]} 7.
Qxd3 {[%clk 0:02:57.9]} 7... Nc6 {[%clk 0:02:53.1]} 8. Bg2 {[%clk 0:02:56.8]}
8... Nf6 {[%clk 0:02:50.3]} 9. O-O {[%clk 0:02:56.2]} 9... Be7 {[%clk
0:02:46.2]} 10. Nc3 {[%clk 0:02:54.2]} 10... O-O {[%clk 0:02:44.9]} 11. Bf4
{[%clk 0:02:52.3]} 11... Nxd4 {[%clk 0:02:40.1]} 12. Qxd4 {[%clk 0:02:52.3]}
12... Be6 {[%clk 0:02:41]} 13. Rfd1 {[%clk 0:02:50.6]} 13... Qa5 {[%clk
0:02:38.7]} 14. Nxd5 {[%clk 0:02:29]} 14... Nxd5 {[%clk 0:02:27.5]} 15. Bxd5
{[%clk 0:02:29.9]} 15... Rfd8 {[%clk 0:02:25.3]} 16. e4 {[%clk 0:02:29.1]} 16...
Rac8 {[%clk 0:02:03.7]} 17. Be5 {[%clk 0:02:18.5]} 17... Bxd5 {[%clk 0:01:51.8]}
18. exd5 {[%clk 0:02:18.2]} 18... f6 {[%clk 0:01:46.8]} 19. Bf4 {[%clk
0:02:18.4]} 19... Bd6 {[%clk 0:01:34]} 20. Bd2 {[%clk 0:01:43.4]} 20... Qb5
{[%clk 0:01:25.8]} 21. Bc3 {[%clk 0:01:26.4]} 21... Be5 {[%clk 0:01:15.7]} 22.
Qd3 {[%clk 0:01:25.7]} 22... Qxd3 {[%clk 0:01:08.6]} 23. Rxd3 {[%clk 0:01:26.6]}
23... Bxc3 {[%clk 0:01:08.4]} 24. bxc3 {[%clk 0:01:27.5]} 24... Rc4 {[%clk
0:01:08.4]} 25. Re1 {[%clk 0:01:14.5]} 25... Rd7 {[%clk 0:01:03.7]} 26. Kg2
{[%clk 0:00:47.2]} 26... Kf7 {[%clk 0:01:03]} 27. Kf3 {[%clk 0:00:43.7]} 27...
Rc5 {[%clk 0:01:01.9]} 28. Red1 {[%clk 0:00:41]} 28... b5 {[%clk 0:00:57.3]} 29.
R1d2 {[%clk 0:00:31.2]} 29... a6 {[%clk 0:00:56.3]} 30. Ke2 {[%clk 0:00:29.3]}
30... Ke7 {[%clk 0:00:52]} 31. Kd1 {[%clk 0:00:26.3]} 31... Kd6 {[%clk
0:00:52.4]} 32. Kc2 {[%clk 0:00:20.2]} 32... Re7 {[%clk 0:00:41.6]} 33. Kb2
{[%clk 0:00:16.1]} 33... Re5 {[%clk 0:00:36.7]} 34. Kb3 {[%clk 0:00:14]} 34...
Rc4 {[%clk 0:00:34.2]} 35. f4 {[%clk 0:00:11.3]} 35... Re1 {[%clk 0:00:31.4]}
36. Rd4 {[%clk 0:00:11.8]} 36... Rc5 {[%clk 0:00:27.5]} 37. a4 {[%clk
0:00:11.2]} 37... Rc1 {[%clk 0:00:26.9]} 38. R2d3 {[%clk 0:00:06.7]} 38... Rb1+
{[%clk 0:00:18.5]} 39. Ka2 {[%clk 0:00:06.4]} 39... Rh1 {[%clk 0:00:19.4]} 40.
axb5 {[%clk 0:00:05.7]} 40... Rxh2+ {[%clk 0:00:18.6]} 41. Kb3 {[%clk
0:00:06.1]} 41... axb5 {[%clk 0:00:18.6]} 42. Rd1 {[%clk 0:00:04.7]} 42... Rg2
{[%clk 0:00:18.4]} 43. R1d3 {[%clk 0:00:05.1]} 43... Rg1 {[%clk 0:00:18.3]} 44.
Re3 {[%clk 0:00:04.9]} 44... Rb1+ {[%clk 0:00:14.6]} 45. Kc2 {[%clk 0:00:04.8]}
45... Rg1 {[%clk 0:00:15.5]} 46. Re6+ {[%clk 0:00:05]} 46... Kd7 {[%clk
0:00:16.1]} 47. Ra6 {[%clk 0:00:04.4]} 47... Rxg3 {[%clk 0:00:15.5]} 48. Ra7+
{[%clk 0:00:04.5]} 48... Kd6 {[%clk 0:00:15.6]} 49. Ra6+ {[%clk 0:00:05.1]}
49... Kd7 {[%clk 0:00:16.2]} 50. Ra7+ {[%clk 0:00:05.6]} 50... Kd6 {[%clk
0:00:16.9]} 51. Ra6+ {[%clk 0:00:06.2]} 51... Kd7 {[%clk 0:00:17.5]} 1/2-1/2

[Event "Early-Titled-Tuesday-Blitz-April-16-2024"]
[Site "Chess.com"]
[Date "2024.04.16"]
[Round "1"]
[White "Josgar05"]
[Black "jumpingknight20"]
[Result "0-1"]
[WhiteElo "2421"]
[BlackElo "2728"]
[TimeControl "180+1"]
[EndTime "8:07:39 PDT"]
[Termination "jumpingknight20 won by checkmate"]

1. Nf3 {[%clk 0:03:00.9]} 1... Nf6 {[%clk 0:02:58.3]} 2. b3 {[%clk 0:03:00.6]}
2... g6 {[%clk 0:02:58.1]} 3. Bb2 {[%clk 0:03:00.9]} 3... Bg7 {[%clk 0:02:58.6]}
4. g3 {[%clk 0:03:01.5]} 4... O-O {[%clk 0:02:58.7]} 5. c4 {[%clk 0:03:01.3]}
5... d6 {[%clk 0:02:58.2]} 6. d4 {[%clk 0:02:58.4]} 6... c5 {[%clk 0:02:57.3]}
7. Bg2 {[%clk 0:02:57]} 7... Nc6 {[%clk 0:02:57.5]} 8. d5 {[%clk 0:02:55.3]}
8... Na5 {[%clk 0:02:55.7]} 9. O-O {[%clk 0:02:54.9]} 9... a6 {[%clk 0:02:56.1]}
10. a4 {[%clk 0:02:44.2]} 10... Rb8 {[%clk 0:02:50.7]} 11. Nc3 {[%clk
0:02:43.4]} 11... Ne4 {[%clk 0:02:46.9]} 12. Qc2 {[%clk 0:02:43.2]} 12... Nxc3
{[%clk 0:02:27.5]} 13. Bxc3 {[%clk 0:02:42.1]} 13... Bf5 {[%clk 0:02:27]} 14.
Qb2 {[%clk 0:02:42.2]} 14... Bxc3 {[%clk 0:02:21.8]} 15. Qxc3 {[%clk 0:02:43.1]}
15... Qb6 {[%clk 0:02:18.5]} 16. Nd2 {[%clk 0:02:40.9]} 16... Bd7 {[%clk
0:02:05]} 17. e4 {[%clk 0:02:37.2]} 17... e5 {[%clk 0:01:54.9]} 18. f4 {[%clk
0:02:35.6]} 18... f6 {[%clk 0:01:53.4]} 19. f5 {[%clk 0:02:29.9]} 19... Kg7
{[%clk 0:01:52]} 20. h4 {[%clk 0:02:28.6]} 20... Qb4 {[%clk 0:01:45.2]} 21. Qxb4
{[%clk 0:02:24.5]} 21... cxb4 {[%clk 0:01:46.1]} 22. g4 {[%clk 0:02:25]} 22...
b6 {[%clk 0:01:45.2]} 23. Rf3 {[%clk 0:02:13.2]} 23... Nb7 {[%clk 0:01:42.1]}
24. Rg3 {[%clk 0:02:13.3]} 24... Nc5 {[%clk 0:01:30.6]} 25. Bf1 {[%clk
0:02:08.6]} 25... Kf7 {[%clk 0:01:25.3]} 26. Kf2 {[%clk 0:01:57.1]} 26... Rg8
{[%clk 0:01:25.2]} 27. Be2 {[%clk 0:01:52.4]} 27... Rg7 {[%clk 0:01:19.4]} 28.
Rh1 {[%clk 0:01:36.7]} 28... Rbg8 {[%clk 0:01:15.2]} 29. h5 {[%clk 0:01:34]}
29... gxf5 {[%clk 0:01:13.5]} 30. exf5 {[%clk 0:01:16.7]} 30... Bxf5 {[%clk
0:01:13.4]} 31. Rhg1 {[%clk 0:01:12.1]} 31... Bd7 {[%clk 0:01:10.7]} 32. Bd1
{[%clk 0:01:03.4]} 32... f5 {[%clk 0:01:02]} 33. g5 {[%clk 0:01:03.2]} 33... f4
{[%clk 0:01:02]} 34. R3g2 {[%clk 0:01:03.6]} 34... e4 {[%clk 0:00:59.1]} 35. h6
{[%clk 0:00:58.2]} 35... Rg6 {[%clk 0:00:48.7]} 36. Bh5 {[%clk 0:00:57.5]} 36...
e3+ {[%clk 0:00:48.3]} 37. Kf3 {[%clk 0:00:57.9]} 37... exd2 {[%clk 0:00:45.7]}
38. Rxd2 {[%clk 0:00:53.8]} 38... Re8 {[%clk 0:00:33.3]} 39. Re2 {[%clk
0:00:51.1]} 39... Rxe2 {[%clk 0:00:30.8]} 40. Kxe2 {[%clk 0:00:52]} 40... Nxb3
{[%clk 0:00:23.9]} 41. Kf3 {[%clk 0:00:52]} 41... Nd4+ {[%clk 0:00:20.4]} 42.
Kxf4 {[%clk 0:00:51.2]} 42... Kf8 {[%clk 0:00:18.5]} 43. Rf1 {[%clk 0:00:45.4]}
43... Rg8 {[%clk 0:00:16.6]} 44. Ke4+ {[%clk 0:00:45.6]} 44... Nf5 {[%clk
0:00:16.4]} 45. Bg4 {[%clk 0:00:43.9]} 45... Rxg5 {[%clk 0:00:16.2]} 46. Bxf5
{[%clk 0:00:44]} 46... Rxf5 {[%clk 0:00:14.7]} 47. Rxf5+ {[%clk 0:00:44]} 47...
Bxf5+ {[%clk 0:00:15.6]} 48. Kxf5 {[%clk 0:00:44.9]} 48... b3 {[%clk 0:00:14.3]}
49. a5 {[%clk 0:00:45.8]} 49... b2 {[%clk 0:00:10.9]} 50. axb6 {[%clk
0:00:44.9]} 50... b1=Q+ {[%clk 0:00:11.8]} 51. Ke6 {[%clk 0:00:45.8]} 51... Qxb6
{[%clk 0:00:12.5]} 52. Kd7 {[%clk 0:00:43.7]} 52... a5 {[%clk 0:00:12.4]} 53. c5
{[%clk 0:00:43.8]} 53... Qxc5 {[%clk 0:00:12.1]} 54. Ke6 {[%clk 0:00:43.5]}
54... a4 {[%clk 0:00:13]} 55. Kd7 {[%clk 0:00:43.9]} 55... a3 {[%clk 0:00:13.9]}
56. Ke6 {[%clk 0:00:44.8]} 56... a2 {[%clk 0:00:14.5]} 57. Kd7 {[%clk
0:00:45.7]} 57... a1=Q {[%clk 0:00:14.8]} 58. Ke6 {[%clk 0:00:46.6]} 58... Qe5+
{[%clk 0:00:14.2]} 59. Kd7 {[%clk 0:00:45.2]} 59... Qe7# {[%clk 0:00:15.1]} 0-1

[Event "Early-Titled-Tuesday-Blitz-April-16-2024"]
[Site "Chess.com"]
[Date "2024.04.16"]
[Round "1"]
[White "ChessboArt"]
[Black "LikeWater"]
[Result "1-0"]
[WhiteElo "2303"]
[BlackElo "2593"]
[TimeControl "180+1"]
[EndTime "8:07:40 PDT"]
[Termination "ChessboArt won on time"]

1. Nf3 {[%clk 0:02:54.1]} 1... d5 {[%clk 0:02:57.9]} 2. g3 {[%clk 0:02:54.2]}
2... c6 {[%clk 0:02:57.7]} 3. Bg2 {[%clk 0:02:54.3]} 3... Bf5 {[%clk 0:02:56.9]}
4. b3 {[%clk 0:02:54.4]} 4... h6 {[%clk 0:02:55.8]} 5. Bb2 {[%clk 0:02:54.4]}
5... e6 {[%clk 0:02:55.7]} 6. O-O {[%clk 0:02:54.4]} 6... Nf6 {[%clk 0:02:55.9]}
7. d3 {[%clk 0:02:54.8]} 7... Nbd7 {[%clk 0:02:55]} 8. Nbd2 {[%clk 0:02:55.3]}
8... Bh7 {[%clk 0:02:54.4]} 9. Qe1 {[%clk 0:02:53.2]} 9... Be7 {[%clk
0:02:46.3]} 10. e4 {[%clk 0:02:52.4]} 10... O-O {[%clk 0:02:45.9]} 11. Qe2
{[%clk 0:02:51.8]} 11... a5 {[%clk 0:02:45.3]} 12. a3 {[%clk 0:02:51.9]} 12...
Qb6 {[%clk 0:02:39.1]} 13. Kh1 {[%clk 0:02:42.8]} 13... a4 {[%clk 0:02:37]} 14.
b4 {[%clk 0:02:36.4]} 14... c5 {[%clk 0:02:35.5]} 15. c3 {[%clk 0:02:24.7]}
15... Rfc8 {[%clk 0:01:52.5]} 16. Rab1 {[%clk 0:02:23.5]} 16... c4 {[%clk
0:01:50]} 17. dxc4 {[%clk 0:02:10.6]} 17... dxe4 {[%clk 0:01:49]} 18. Nd4 {[%clk
0:01:52.6]} 18... e3 {[%clk 0:01:46.5]} 19. Qxe3 {[%clk 0:01:34.7]} 19... Bxb1
{[%clk 0:01:43.2]} 20. Rxb1 {[%clk 0:01:35.6]} 20... e5 {[%clk 0:00:31.7]} 21.
c5 {[%clk 0:01:27.9]} 21... exd4 {[%clk 0:00:16.2]} 22. Qxe7 {[%clk 0:01:28.8]}
22... Qc7 {[%clk 0:00:16]} 23. Nc4 {[%clk 0:01:02.9]} 23... dxc3 {[%clk
0:00:04.7]} 24. Bxc3 {[%clk 0:01:02.4]} 24... Re8 {[%clk 0:00:03.5]} 25. Qd6
{[%clk 0:01:01.9]} 25... Qc8 {[%clk 0:00:02.7]} 26. Rd1 {[%clk 0:00:53]} 26...
Ra6 {[%clk 0:00:02.9]} 27. Qf4 {[%clk 0:00:47]} 27... Rae6 {[%clk 0:00:02.5]}
28. Nd6 {[%clk 0:00:44.8]} 28... Rxd6 {[%clk 0:00:02.6]} 29. Qxd6 {[%clk
0:00:42.5]} 29... Re2 {[%clk 0:00:03.3]} 30. Bh3 {[%clk 0:00:37.1]} 30... Qe8
{[%clk 0:00:02.8]} 31. Bxd7 {[%clk 0:00:32.6]} 31... Qe4+ {[%clk 0:00:02.8]} 32.
Kg1 {[%clk 0:00:28.6]} 32... Rxf2 {[%clk 0:00:03.7]} 33. Kxf2 {[%clk 0:00:22.8]}
33... Qc2+ {[%clk 0:00:03.6]} 34. Ke1 {[%clk 0:00:18.1]} 34... Ne4 {[%clk
0:00:02.7]} 35. Bd2 {[%clk 0:00:16.2]} 35... Nxd6 {[%clk 0:00:02.3]} 36. cxd6
{[%clk 0:00:17.1]} 36... Qe4+ {[%clk 0:00:01.7]} 37. Kf1 {[%clk 0:00:16.3]}
37... Qh1+ {[%clk 0:00:01.4]} 38. Ke2 {[%clk 0:00:16.4]} 38... Qe4+ {[%clk
0:00:02]} 39. Be3 {[%clk 0:00:17]} 39... Qg2+ {[%clk 0:00:01.5]} 40. Kd3 {[%clk
0:00:17]} 40... Qd5+ {[%clk 0:00:00.7]} 41. Ke2 {[%clk 0:00:17.6]} 1-0